fUST/lending_fUST_20250528
["ID","MTS","AMOUNT","RATE_DAILY","PERIOD"]
[362585170,1748367049326,-4117.365971,0.000221,2]
[362585171,1748367049336,-151.0,0.00022191,7]
[362585173,1748367049346,-151.0,0.00022191,7]
[362585175,1748367049356,-151.0,0.00022191,7]
[362585177,1748367049366,-151.0,0.00022191,7]
[362585179,1748367049376,-151.0,0.00022191,7]
[362585181,1748367049386,-151.0,0.00022191,7]
[362585183,1748367049395,-151.0,0.00022191,7]
[362585185,1748367049405,-151.0,0.00022191,7]
[362585188,1748367049425,-151.0,0.00022191,7]
[362585191,1748367049437,-151.0,0.00022191,7]
[362585193,1748367049448,-430.0,0.00022191,2]
[362585195,1748367049458,-430.0,0.00022191,2]
[362585197,1748367049469,-905.8,0.00022191,2]
[362585199,1748367049478,-968.45,0.00022191,2]
[362585201,1748367049488,-1524.53,0.00022191,2]
[362585203,1748367049498,-430.0,0.00022191,2]
[362585205,1748367049508,-613.93,0.00022191,2]
[362585207,1748367049517,-317.66,0.00022191,2]
[362585209,1748367049527,-1225.89,0.00022191,2]
[362585211,1748367049537,-646.52,0.00022191,2]
[362585213,1748367049546,-430.0,0.00022191,2]
[362585215,1748367049556,-430.0,0.00022191,2]
[362585217,1748367049565,-526.33,0.00022191,2]
[362585219,1748367049575,-468.57,0.00022191,2]
[362585222,1748367049585,-701.53,0.00022191,2]
[362585224,1748367049595,-1533.15,0.00022191,2]
[362585226,1748367049605,-430.0,0.00022191,2]
[362585228,1748367049616,-3610.84553132,0.0002221,6]
[362585230,1748367049626,-405.0,0.00022248,2]
[362585232,1748367049636,-961.0,0.00022248,2]
[362585234,1748367049646,-600.0,0.0002226,2]
[362585236,1748367049655,-2051.86,0.00022357,2]
[362585238,1748367049665,-1800.0,0.00022386,2]
[362585240,1748367049675,-151.0,0.00022417,2]
[362585242,1748367049685,-151.0,0.00022417,2]
[362585244,1748367049694,-3610.84553132,0.00022417,7]
[362585260,1748367049837,-715.0,0.00022434,2]
[362585262,1748367049848,-430.0,0.00022465,2]
[362585264,1748367049859,-430.0,0.00022465,2]
[362585266,1748367049869,-905.8,0.00022465,2]
[362585268,1748367049879,-968.45,0.00022465,2]
[362585270,1748367049888,-1524.53,0.00022465,2]
[362585272,1748367049898,-430.0,0.00022465,2]
[362585274,1748367049909,-241.64458779,0.00022465,2]
[362585285,1748367050013,-372.28541221,0.00022465,2]
[362585287,1748367050023,-1225.89,0.00022465,2]
[362585289,1748367050033,-369.32034445,0.00022465,2]
[362585316,1748367050281,-277.19965555,0.00022465,2]
[362585318,1748367050291,-45.46127344,0.00022465,2]
[362585328,1748367050379,-157.45112762,0.00018025,2]
[362585330,1748367050389,-300.0,0.00019105,2]
[362585332,1748367050399,-430.0,0.00019178,2]
[362585334,1748367050408,-406.5015007,0.00019178,2]
[362585336,1748367050419,-1000.0,0.00019934,2]
[362585338,1748367050428,-1000.0,0.00019934,7]
[362585340,1748367050437,-1000.0,0.00019934,7]
[362585342,1748367050447,-384.53872656,0.00022465,2]
[362585344,1748367050457,-430.0,0.00022465,2]
[362585346,1748367050466,-151.0,0.00022465,7]
[362585348,1748367050475,-526.33,0.00022465,2]
[362585350,1748367050484,-468.57,0.00022465,2]
[362585352,1748367050494,-701.53,0.00022465,2]
[362585354,1748367050504,-1533.15,0.00022465,2]
[362585356,1748367050513,-430.0,0.00022465,2]
[362585358,1748367050522,-151.0,0.00022615,7]
[362585361,1748367050532,-151.0,0.00022615,7]
[362585363,1748367050542,-5000.0,0.00022615,2]
[362585365,1748367050551,-3610.84553132,0.00022624,7]
[362585367,1748367050560,-158.519316,0.00022662,2]
[362585369,1748367050570,-151.0,0.00022739,7]
[362585370,1748367050580,-192.52143,0.00022739,7]
[362585373,1748367050590,-151.0,0.00022739,7]
[362585375,1748367050600,-430.0,0.00022739,2]
[362585377,1748367050609,-430.0,0.00022739,2]
[362585379,1748367050619,-905.8,0.00022739,2]
[362585381,1748367050628,-968.45,0.00022739,2]
[362585383,1748367050638,-1524.53,0.00022739,2]
[362585385,1748367050648,-430.0,0.00022739,2]
[362585386,1748367050657,-613.93,0.00022739,2]
[362585387,1748367050666,-1225.89,0.00022739,2]
[362585388,1748367050676,-646.52,0.00022739,2]
[362585389,1748367050685,-430.0,0.00022739,2]
[362585390,1748367050694,-430.0,0.00022739,2]
[362585391,1748367050703,-526.33,0.00022739,2]
[362585392,1748367050713,-468.57,0.00022739,2]
[362585393,1748367050722,-701.53,0.00022739,2]
[362585395,1748367050731,-1533.15,0.00022739,2]
[362585397,1748367050739,-430.0,0.00022739,2]
[362585399,1748367050749,-151.0,0.000228,6]
[362585401,1748367050759,-3610.84553132,0.00022831,8]
[362585403,1748367050768,-151.0,0.000229,5]
[362585405,1748367050778,-160.0,0.00022964,5]
[362585407,1748367050788,-129879.69102639,0.00022999,2]
[362585409,1748367050799,-160.0,0.00023,3]
[362585411,1748367050808,-160.0,0.00023,3]
[362585413,1748367050818,-423.16111059,0.00023,3]
[362585415,1748367050827,-151.0,0.00023,7]
[362585418,1748367050837,-229.18805157,0.00023,3]
[362585420,1748367050847,-160.0,0.00023,3]
[362585422,1748367050857,-176.340074,0.00023013,7]
[362585424,1748367050867,-151.0,0.00023013,7]
[362585426,1748367050877,-151.0,0.00023013,7]
[362585428,1748367050886,-151.0,0.00023013,7]
[362585430,1748367050896,-430.0,0.00023013,2]
[362585432,1748367050906,-430.0,0.00023013,2]
[362585434,1748367050921,-905.8,0.00023013,2]
[362585436,1748367050930,-968.45,0.00023013,2]
[362585438,1748367050940,-1524.53,0.00023013,2]
[362585440,1748367050949,-430.0,0.00023013,2]
[362585442,1748367050961,-613.93,0.00023013,2]
[362585444,1748367050971,-1225.89,0.00023013,2]
[362585447,1748367050980,-646.52,0.00023013,2]
[362585448,1748367050991,-430.0,0.00023013,2]
[362585450,1748367051001,-430.0,0.00023013,2]
[362585453,1748367051010,-526.33,0.00023013,2]
[362585455,1748367051020,-468.57,0.00023013,2]
[362585457,1748367051029,-701.53,0.00023013,2]
[362585459,1748367051039,-1533.15,0.00023013,2]
[362585461,1748367051049,-430.0,0.00023013,2]
[362585463,1748367051058,-3610.84553132,0.00023038,8]
[362585465,1748367051068,-1000.0,0.00023082,2]
[362585467,1748367051078,-151.0,0.000231,8]
[362585469,1748367051087,-1000.0,0.00023138,2]
[362585471,1748367051097,-3000.0,0.00023218,3]
[362585473,1748367051106,-3610.84553132,0.00023245,8]
[362585475,1748367051115,-160.0,0.00023246,2]
[362585477,1748367051126,-151.0,0.00023287,2]
[362585479,1748367051136,-151.0,0.00023287,2]
[362585481,1748367051146,-430.0,0.00023287,2]
[362585483,1748367051155,-430.0,0.00023287,2]
[362585485,1748367051165,-905.8,0.00023287,2]
[362585487,1748367051179,-968.45,0.00023287,2]
[362585489,1748367051190,-1524.53,0.00023287,2]
[362585491,1748367051200,-430.0,0.00023287,2]
[362585493,1748367051210,-613.93,0.00023287,2]
[362585495,1748367051220,-1225.89,0.00023287,2]
[362585497,1748367051230,-646.52,0.00023287,2]
[362585499,1748367051240,-430.0,0.00023287,2]
[362585501,1748367051250,-430.0,0.00023287,2]
[362585504,1748367051261,-280.869062,0.00023287,7]
[362585506,1748367051271,-526.33,0.00023287,2]
[362585508,1748367051282,-468.57,0.00023287,2]
[362585510,1748367051292,-701.53,0.00023287,2]
[362585512,1748367051301,-1533.15,0.00023287,2]
[362585514,1748367051311,-430.0,0.00023287,2]
[362585516,1748367051320,-160.0,0.00023299,2]
[362585518,1748367051329,-30451.84581087,0.000233,2]
[362585520,1748367051342,-17741.22774102,0.000233,2]
[362585532,1748367051452,-401.40508588,0.00019178,2]
[362585534,1748367051462,-182.4381755,0.00020904,2]
[362585536,1748367051471,-158.3360012,0.00020904,2]
[362585538,1748367051480,-571.8642545,0.00020904,2]
[362585541,1748367051489,-157.45112762,0.00021463,2]
[362585543,1748367051498,-8127.03253415,0.000233,2]
[362588043,1748367751470,-157.0,0.00018343,2]
[362588044,1748367820782,-913.0,0.00018171,2]
[362588046,1748367889097,-401.0,0.00018171,2]
[362588050,1748367957602,-4138.3269839,0.00018171,2]
[362588051,1748367957626,-78.817424,0.00018343,2]
[362588052,1748367957648,-3274.5891381,0.00018957,2]
[362588053,1748367957670,-157.45112762,0.00019078,2]
[362588054,1748367957695,-160.0,0.00019158,2]
[362588055,1748367957717,-151.00000001,0.00019166,2]
[362588056,1748367957743,-166.81532637,0.00019177,2]
[362588069,1748368160461,475.5449,0.00013699,2]
[362588106,1748368231884,-2722.9627751,0.00018355,2]
[362588108,1748368231894,-222.22293342,0.000189,2]
[362588110,1748368231903,-157.45112762,0.00019078,2]
[362588112,1748368231913,-21.60325621,0.00019177,2]
[362588114,1748368231923,-330.86108177,0.00019177,2]
[362588117,1748368231932,-444.5562318,0.00019177,2]
[362588119,1748368231941,-500.0,0.00019177,2]
[362588121,1748368231951,-500.0,0.00019177,2]
[362588123,1748368231961,-320.94819991,0.00019177,2]
[362588125,1748368231970,-251.38247227,0.00019177,2]
[362588127,1748368231980,-523.4,0.00019178,2]
[362588129,1748368231989,-430.0,0.00019178,2]
[362588131,1748368231999,-430.0,0.00019178,2]
[362588133,1748368232009,-430.0,0.00019178,2]
[362588135,1748368232019,-430.0,0.00019178,2]
[362588137,1748368232029,-430.0,0.00019178,2]
[362588139,1748368232040,-430.0,0.00019178,2]
[362588141,1748368232050,-274.26749053,0.00019178,2]
[362588143,1748368232062,-155.73250947,0.00019178,2]
[362588145,1748368232071,-430.0,0.00019178,2]
[362588147,1748368232081,-430.0,0.00019178,2]
[362588149,1748368232091,-430.0,0.00019178,2]
[362588151,1748368232101,-430.0,0.00019178,2]
[362588153,1748368232110,-430.0,0.00019178,2]
[362588155,1748368232119,-430.0,0.00019178,2]
[362588158,1748368232128,-430.0,0.00019178,2]
[362588160,1748368232138,-552.52,0.00019178,2]
[362588162,1748368232148,-430.0,0.00019178,2]
[362588164,1748368232157,-456.79734651,0.00019178,2]
[362588166,1748368232167,-430.0,0.00019178,2]
[362588168,1748368232176,-430.0,0.00019178,2]
[362588170,1748368232186,-430.0,0.00019178,2]
[362588171,1748368232196,-483.75,0.00019178,2]
[362588173,1748368232205,-515.63,0.00019178,2]
[362588175,1748368232215,-430.0,0.00019178,2]
[362588177,1748368232225,-430.0,0.00019178,2]
[362588179,1748368232235,-430.0,0.00019178,2]
[362588180,1748368232244,-430.0,0.00019178,2]
[362588182,1748368232254,-430.0,0.00019178,2]
[362588184,1748368232263,-516.52846748,0.00019178,2]
[362588186,1748368232272,-430.0,0.00019178,2]
[362588188,1748368232282,-441.49245202,0.00019178,2]
[362588190,1748368232293,-430.0,0.00019178,2]
[362588192,1748368232301,-323.27982967,0.00019178,2]
[362588193,1748368232311,-401.40508588,0.00019178,2]
[362588194,1748368232320,-430.0,0.00019178,2]
[362588195,1748368232330,-406.67448792,0.00019178,2]
[362588196,1748368232339,-430.0,0.00019178,2]
[362588197,1748368232348,-430.0,0.00019178,2]
[362588198,1748368232358,-430.0,0.00019178,2]
[362588199,1748368232367,-402.61772283,0.00019178,2]
[362588200,1748368232378,-430.0,0.00019178,2]
[362588201,1748368232387,-419.1624014,0.00019178,2]
[362588202,1748368232397,-430.0,0.00019178,2]
[362588203,1748368232408,-503.38170601,0.00019178,2]
[362588204,1748368232418,-430.0,0.00019178,2]
[362588205,1748368232432,-400.0,0.00019178,2]
[362588206,1748368232444,-430.0,0.00019178,2]
[362588207,1748368232454,-430.0,0.00019178,2]
[362588208,1748368232463,-500.0,0.00019178,2]
[362588209,1748368232475,-465.12939596,0.00019178,2]
[362588210,1748368232484,-414.55494655,0.00019178,2]
[362588211,1748368232494,-431.42841871,0.00019178,2]
[362588212,1748368232506,-430.0,0.00019178,2]
[362588213,1748368232515,-432.03823321,0.00019178,2]
[362588214,1748368232525,-430.0,0.00019178,2]
[362588215,1748368232536,-419.60711294,0.00019178,2]
[362588216,1748368232546,-402.08601506,0.00019178,2]
[362588217,1748368232556,-430.0,0.00019178,2]
[362588218,1748368232566,-430.0,0.00019178,2]
[362588219,1748368232575,-436.95562546,0.00019178,2]
[362588220,1748368232585,-430.0,0.00019178,2]
[362588221,1748368232595,-353.36600866,0.00019178,2]
[362588222,1748368232606,-430.0,0.00019178,2]
[362588223,1748368232615,-430.0,0.00019178,2]
[362588224,1748368232625,-430.0,0.00019178,2]
[362588225,1748368232635,-556.88518405,0.00019178,2]
[362588226,1748368232645,-430.0,0.00019178,2]
[362588227,1748368232655,-430.0,0.00019178,2]
[362588228,1748368232665,-430.0,0.00019178,2]
[362588229,1748368232676,-609.48,0.00019178,2]
[362588230,1748368232686,-430.0,0.00019178,2]
[362588231,1748368232696,-430.0,0.00019178,2]
[362588232,1748368232706,-378.90531776,0.00019178,2]
[362588233,1748368232715,-430.0,0.00019178,2]
[362588234,1748368232726,-430.0,0.00019178,2]
[362588235,1748368232736,-430.0,0.00019178,2]
[362588236,1748368232746,-430.0,0.00019178,2]
[362588237,1748368232755,-430.0,0.00019178,2]
[362588238,1748368232764,-462.38,0.00019178,2]
[362588239,1748368232774,-430.0,0.00019178,2]
[362588240,1748368232784,-430.0,0.00019178,2]
[362588241,1748368232794,-470.0,0.00019178,2]
[362588242,1748368232805,-470.0,0.00019178,2]
[362588243,1748368232816,-430.0,0.00019178,2]
[362588244,1748368232826,-430.0,0.00019178,2]
[362588245,1748368232836,-430.0,0.00019178,2]
[362588246,1748368232845,-430.0,0.00019178,2]
[362588247,1748368232854,-316.5559065,0.00019178,2]
[362588248,1748368232864,-430.0,0.00019178,2]
[362588249,1748368232873,-370.0,0.00019178,2]
[362588250,1748368232883,-430.0,0.00019178,2]
[362588251,1748368232894,-430.0,0.00019178,2]
[362588252,1748368232903,-430.0,0.00019178,2]
[362588253,1748368232912,-430.0,0.00019178,2]
[362588254,1748368232922,-420.0,0.00019178,2]
[362588255,1748368232932,-430.0,0.00019178,2]
[362588256,1748368232941,-430.0,0.00019178,2]
[362588257,1748368232951,-430.0,0.00019178,2]
[362588258,1748368232960,-430.0,0.00019178,2]
[362588259,1748368232970,-430.0,0.00019178,2]
[362588260,1748368232979,-430.0,0.00019178,2]
[362588261,1748368232989,-430.0,0.00019178,2]
[362588262,1748368232999,-430.0,0.00019178,2]
[362588263,1748368233008,-430.0,0.00019178,2]
[362588264,1748368233017,-430.0,0.00019178,2]
[362588265,1748368233027,-430.0,0.00019178,2]
[362588266,1748368233036,-430.0,0.00019178,2]
[362588267,1748368233046,-430.0,0.00019178,2]
[362588268,1748368233055,-430.0,0.00019178,2]
[362588269,1748368233064,-430.0,0.00019178,2]
[362588270,1748368233075,-430.0,0.00019178,2]
[362588271,1748368233085,-400.0,0.00019178,2]
[362588272,1748368233095,-400.0,0.00019178,2]
[362588273,1748368233105,-400.0,0.00019178,2]
[362588274,1748368233114,-400.0,0.00019178,2]
[362588275,1748368233123,-430.0,0.00019178,2]
[362588276,1748368233132,-400.0,0.00019178,2]
[362588277,1748368233142,-430.0,0.00019178,2]
[362588278,1748368233151,-430.0,0.00019178,2]
[362588279,1748368233160,-194.31,0.00019178,2]
[362588280,1748368233171,-430.0,0.00019178,2]
[362588281,1748368233181,-430.0,0.00019178,2]
[362588282,1748368233190,-518.84,0.00019178,2]
[362588283,1748368233200,-430.0,0.00019178,2]
[362588284,1748368233210,-430.0,0.00019452,2]
[362588285,1748368233220,-430.0,0.00019452,2]
[362588286,1748368233229,-430.0,0.00019452,2]
[362588287,1748368233240,-430.0,0.00019452,2]
[362588288,1748368233250,-430.0,0.00019452,2]
[362588289,1748368233259,-448.15928826,0.00019452,2]
[362588290,1748368233270,-430.0,0.00019452,2]
[362588291,1748368233282,-609.48,0.00019452,2]
[362588292,1748368233293,-430.0,0.00019452,2]
[362588293,1748368233303,-430.0,0.00019452,2]
[362588294,1748368233438,-462.38,0.00019452,2]
[362588295,1748368233449,-430.0,0.00019452,2]
[362588296,1748368233460,-430.0,0.00019452,2]
[362588297,1748368233470,-447.87,0.00019452,2]
[362588298,1748368233482,-488.51,0.00019452,2]
[362588299,1748368233494,-411.74044434,0.00019452,2]
[362588300,1748368233504,-385.15,0.00019452,2]
[362588301,1748368233515,-430.0,0.00019452,2]
[362588302,1748368233525,-430.0,0.00019452,2]
[362588303,1748368233536,-518.84,0.00019452,2]
[362588304,1748368233547,-430.0,0.00019452,2]
[362588305,1748368233558,-212.62946336,0.0001956,2]
[362588306,1748368233568,-229.18805157,0.0001956,2]
[362588307,1748368233579,-160.0,0.00019564,2]
[362588308,1748368233589,-421.83168992,0.00019564,2]
[362588309,1748368233601,-160.0,0.00019566,2]
[362588310,1748368233611,-430.0,0.00019598,2]
[362588311,1748368233621,-430.0,0.00019598,2]
[362588312,1748368233632,-430.0,0.00019598,2]
[362588313,1748368233642,-430.0,0.00019598,2]
[362588314,1748368233652,-430.0,0.00019598,2]
[362588315,1748368233662,-430.0,0.00019598,2]
[362588316,1748368233672,-430.0,0.00019598,2]
[362588317,1748368233683,-500.0,0.00019633,2]
[362588318,1748368233693,-262.19517333,0.00019709,2]
[362588319,1748368233703,-430.0,0.00019726,2]
[362588320,1748368233714,-430.0,0.00019726,2]
[362588321,1748368233724,-239.69,0.00019726,2]
[362588322,1748368233733,-430.0,0.00019726,2]
[362588323,1748368233743,-430.0,0.00019726,2]
[362588324,1748368233753,-609.48,0.00019726,2]
[362588325,1748368233763,-430.0,0.00019726,2]
[362588326,1748368233773,-462.38,0.00019726,2]
[362588327,1748368233783,-558.32,0.00019726,2]
[362588328,1748368233794,-430.0,0.00019726,2]
[362588329,1748368233805,-430.0,0.00019726,2]
[362588330,1748368233815,-430.0,0.00019726,2]
[362588331,1748368233826,-518.84,0.00019726,2]
[362588332,1748368233836,-430.0,0.00019726,2]
[362588333,1748368233846,-430.0,0.00019872,2]
[362588334,1748368233855,-430.0,0.00019872,2]
[362588335,1748368233865,-430.0,0.00019872,2]
[362588336,1748368233875,-430.0,0.00019872,2]
[362588337,1748368233885,-430.0,0.0002,2]
[362588338,1748368233894,-430.0,0.0002,2]
[362588339,1748368233905,-430.0,0.0002,2]
[362588340,1748368233915,-430.0,0.0002,2]
[362588341,1748368233924,-609.48,0.0002,2]
[362588342,1748368233934,-430.0,0.0002,2]
[362588343,1748368233944,-462.38,0.0002,2]
[362588344,1748368233954,-430.0,0.0002,2]
[362588345,1748368233963,-276.98,0.0002,2]
[362588346,1748368233973,-430.0,0.0002,2]
[362588347,1748368233983,-518.84,0.0002,2]
[362588348,1748368233992,-430.0,0.0002,2]
[362588349,1748368234002,-430.0,0.00020146,2]
[362588350,1748368234012,-430.0,0.00020146,2]
[362588351,1748368234022,-430.0,0.00020146,2]
[362588352,1748368234032,-430.0,0.00020146,2]
[362588353,1748368234043,-475.5449,0.00020187,2]
[362588354,1748368234052,-430.0,0.00020273,2]
[362588355,1748368234062,-430.0,0.00020273,2]
[362588356,1748368234071,-430.0,0.00020273,2]
[362588357,1748368234080,-430.0,0.00020273,2]
[362588358,1748368234089,-609.48,0.00020273,2]
[362588359,1748368234098,-430.0,0.00020273,2]
[362588360,1748368234108,-462.38,0.00020273,2]
[362588361,1748368234117,-430.0,0.00020273,2]
[362588362,1748368234126,-430.0,0.00020273,2]
[362588363,1748368234135,-518.84,0.00020273,2]
[362588364,1748368234145,-430.0,0.00020273,2]
[362588365,1748368234154,-430.0,0.0002042,2]
[362588366,1748368234164,-430.0,0.0002042,2]
[362588367,1748368234173,-430.0,0.0002042,2]
[362588368,1748368234182,-430.0,0.0002042,2]
[362588369,1748368234192,-332.23135741,0.00020547,2]
[362588370,1748368234201,-430.0,0.00020547,2]
[362588371,1748368234210,-430.0,0.00020547,2]
[362588372,1748368234221,-430.0,0.00020547,2]
[362588373,1748368234230,-609.48,0.00020547,2]
[362588374,1748368234239,-430.0,0.00020547,2]
[362588375,1748368234249,-462.38,0.00020547,2]
[362588376,1748368234259,-430.0,0.00020547,2]
[362588377,1748368234269,-430.0,0.00020547,2]
[362588378,1748368234278,-518.84,0.00020547,2]
[362588379,1748368234288,-430.0,0.00020547,2]
[362588380,1748368234298,-430.0,0.00020694,2]
[362588381,1748368234308,-430.0,0.00020694,2]
[362588382,1748368234318,-430.0,0.00020694,2]
[362588383,1748368234327,-430.0,0.00020694,2]
[362588384,1748368234336,-350.97,0.00020821,2]
[362588385,1748368234346,-430.0,0.00020821,2]
[362588386,1748368234356,-430.0,0.00020821,2]
[362588387,1748368234365,-609.48,0.00020821,2]
[362588388,1748368234375,-430.0,0.00020821,2]
[362588389,1748368234385,-462.38,0.00020821,2]
[362588390,1748368234394,-430.0,0.00020821,2]
[362588391,1748368234404,-430.0,0.00020821,2]
[362588392,1748368234414,-518.84,0.00020821,2]
[362588393,1748368234423,-1086.11669998,0.000209,4]
[362588394,1748368234438,-342.06,0.00020968,2]
[362588395,1748368234447,-430.0,0.00020968,2]
[362588396,1748368234457,-430.0,0.00020968,2]
[362588397,1748368234466,-430.0,0.00020968,2]
[362588398,1748368234477,-255.74,0.00020969,2]
[362588399,1748368234486,-1086.11669982,0.00021038,4]
[362588400,1748368234496,-430.0,0.00021095,2]
[362588401,1748368234507,-430.0,0.00021095,2]
[362588402,1748368234517,-609.48,0.00021095,2]
[362588403,1748368234526,-430.0,0.00021095,2]
[362588404,1748368234535,-462.38,0.00021095,2]
[362588405,1748368234544,-430.0,0.00021095,2]
[362588406,1748368234554,-430.0,0.00021095,2]
[362588407,1748368234563,-518.84,0.00021095,2]
[362588408,1748368234573,-500.0,0.00021164,2]
[362588409,1748368234582,-1086.11669982,0.00021176,4]
[362588410,1748368234592,-430.0,0.00021242,2]
[362588411,1748368234601,-430.0,0.00021242,2]
[362588412,1748368234611,-186.64,0.00021242,2]
[362588413,1748368234620,-158.519316,0.00021255,6]
[362588414,1748368234629,-1086.11669982,0.00021314,5]
[362588415,1748368234639,-430.0,0.00021369,2]
[362588416,1748368234648,-430.0,0.00021369,2]
[362588417,1748368234657,-609.48,0.00021369,2]
[362588418,1748368234667,-430.0,0.00021369,2]
[362588419,1748368234676,-462.38,0.00021369,2]
[362588420,1748368234685,-430.0,0.00021369,2]
[362588421,1748368234695,-430.0,0.00021369,2]
[362588422,1748368234704,-518.84,0.00021369,2]
[362588423,1748368234714,-1086.11669982,0.00021452,5]
[362588424,1748368234723,-238.79,0.00021516,2]
[362588425,1748368234732,-430.0,0.00021516,2]
[362588426,1748368234742,-1086.11669982,0.0002159,5]
[362588427,1748368234752,-430.0,0.00021643,2]
[362588428,1748368234762,-430.0,0.00021643,2]
[362588429,1748368234771,-609.48,0.00021643,2]
[362588430,1748368234780,-430.0,0.00021643,2]
[362588431,1748368234790,-462.38,0.00021643,2]
[362588432,1748368234803,-430.0,0.00021643,2]
[362588433,1748368234816,-430.0,0.00021643,2]
[362588434,1748368234828,-518.84,0.00021643,2]
[362588435,1748368234841,-1086.11669982,0.00021728,5]
[362588436,1748368234854,-430.0,0.0002179,2]
[362588437,1748368234867,-1086.11669982,0.00021866,6]
[362588438,1748368234879,-430.0,0.00021917,2]
[362588439,1748368234891,-430.0,0.00021917,2]
[362588440,1748368234903,-609.48,0.00021917,2]
[362588441,1748368234916,-430.0,0.00021917,2]
[362588442,1748368234928,-462.38,0.00021917,2]
[362588443,1748368234941,-430.0,0.00021917,2]
[362588444,1748368234953,-340.82,0.00021917,2]
[362588445,1748368234965,-518.84,0.00021917,2]
[362588446,1748368234976,-1086.11669982,0.00022003,6]
[362588447,1748368234988,-430.0,0.00022064,2]
[362588448,1748368235000,-1086.11669982,0.00022141,6]
[362588449,1748368235012,-810.226,0.00022178,2]
[362588450,1748368235023,-2230.0,0.00022178,2]
[362588451,1748368235035,-708.0,0.00022178,2]
[362588452,1748368235048,-405.0,0.00022178,2]
[362588453,1748368235061,-430.0,0.00022191,2]
[362588454,1748368235073,-430.0,0.00022191,2]
[362588455,1748368235087,-609.48,0.00022191,2]
[362588456,1748368235098,-430.0,0.00022191,2]
[362588457,1748368235110,-462.38,0.00022191,2]
[362588458,1748368235122,-442.29,0.00022191,2]
[362588459,1748368235135,-518.84,0.00022191,2]
[362588460,1748368235147,-500.0,0.0002226,2]
[362588461,1748368235159,-1086.11669982,0.00022279,6]
[362588462,1748368235171,-279.39935166,0.00022338,2]
[362588463,1748368235185,-1086.11669982,0.00022417,7]
[362588464,1748368235197,-430.0,0.00022465,2]
[362588465,1748368235209,-430.0,0.00022465,2]
[362588466,1748368235221,-609.48,0.00022465,2]
[362588467,1748368235234,-430.0,0.00022465,2]
[362588468,1748368235246,-462.38,0.00022465,2]
[362588469,1748368235258,-518.84,0.00022465,2]
[362588470,1748368235268,-1086.11669982,0.00022555,7]
[362588471,1748368235279,-1086.11669982,0.00022693,7]
[362588472,1748368235288,-430.0,0.00022739,2]
[362588473,1748368235299,-430.0,0.00022739,2]
[362588474,1748368235310,-609.48,0.00022739,2]
[362588475,1748368235321,-430.0,0.00022739,2]
[362588476,1748368235332,-462.38,0.00022739,2]
[362588477,1748368235343,-518.84,0.00022739,2]
[362588478,1748368235355,-1086.11669982,0.00022831,8]
[362588479,1748368235367,-888.531224,0.00022834,3]
[362588480,1748368235380,-2058.97,0.0002285,2]
[362588481,1748368235391,-1086.11669982,0.00022969,8]
[362588482,1748368235403,-188.0,0.00023,7]